bitfinex/quotes_BTCUSD_20250902
["timestamp","ask_amount","ask_price","bid_price","bid_amount"]
[1756835766656,0.61703916,111100.0,111090.0,1e-08]
[1756835766657,1.02599032,111100.0,111090.0,1e-08]
[1756835766908,1.30235565,111100.0,111090.0,1e-08]
[1756835767107,1.19158791,111100.0,111090.0,1e-08]
[1756835767452,0.76319203,111100.0,111090.0,1e-08]
[1756835767883,0.73702269,111100.0,111090.0,1e-08]
[1756835768678,0.73602269,111100.0,111090.0,1e-08]
[1756835768913,0.73702269,111100.0,111090.0,1e-08]
[1756835769508,0.73802269,111100.0,111090.0,1e-08]
[1756835771100,0.89530269,111100.0,111090.0,1e-08]
[1756835772012,1.30425385,111100.0,111090.0,1e-08]
[1756835772323,1.33146319,111100.0,111090.0,1e-08]
[1756835773146,1.17414319,111100.0,111090.0,1e-08]
[1756835773328,1.33146319,111100.0,111090.0,1e-08]
[1756835773525,1.30429385,111100.0,111090.0,1e-08]
[1756835773736,0.48639153,111100.0,111090.0,1e-08]
[1756835774164,1.30429385,111100.0,111090.0,1e-08]
[1756835775038,1.14697385,111100.0,111090.0,1e-08]
[1756835775242,0.73502269,111100.0,111090.0,1e-08]
[1756835775659,0.73817269,111100.0,111090.0,1e-08]
[1756835776700,1.14712385,111100.0,111090.0,1e-08]
[1756835777227,1.30444385,111100.0,111090.0,1e-08]
[1756835777433,1.14712385,111100.0,111090.0,1e-08]
[1756835777655,0.89549269,111100.0,111090.0,1e-08]
[1756835777860,0.73817269,111100.0,111090.0,1e-08]
[1756835779591,0.73502269,111100.0,111090.0,1e-08]
[1756835779792,0.182018,111100.0,111090.0,0.00518001]
[1756835780116,0.59096916,111100.0,111090.0,0.00518001]
[1756835780322,0.182018,111100.0,111090.0,0.00518001]
[1756835780531,0.59096916,111100.0,111090.0,0.00518001]
[1756835780935,0.182018,111100.0,111090.0,0.254416]
[1756835781547,0.182018,111100.0,111090.0,0.097096]
[1756835781743,0.182018,111100.0,111090.0,0.254416]
[1756835782443,0.182018,111100.0,111090.0,0.4344502]
[1756835782642,0.182018,111100.0,111090.0,0.254416]
[1756835783218,0.182018,111100.0,111090.0,0.097096]
[1756835783435,0.182018,111100.0,111090.0,0.254376]
[1756835783813,0.182018,111100.0,111090.0,0.4978502]
[1756835784445,0.182018,111100.0,111090.0,0.317816]
[1756835785311,0.182018,111100.0,111090.0,0.160536]
[1756835785512,0.182018,111100.0,111090.0,0.317816]
[1756835787658,0.182018,111100.0,111090.0,0.160536]
[1756835787833,0.59096916,111100.0,111090.0,0.160536]
[1756835788059,0.184088,111100.0,111090.0,0.06344001]
[1756835788281,0.184088,111100.0,111090.0,0.22072001]
[1756835788282,0.59303916,111100.0,111090.0,0.22072001]
[1756835788433,0.59303916,111100.0,111090.0,1e-08]
[1756835788434,0.184088,111100.0,111090.0,1e-08]
[1756835788630,0.59303916,111100.0,111090.0,0.15728001]
[1756835789311,0.59303916,111100.0,111090.0,1e-08]
[1756835789533,1.02938032,111100.0,111090.0,1e-08]
[1756835790001,0.62042916,111100.0,111090.0,1e-08]
[1756835792849,0.71234515,111100.0,111090.0,1e-08]
[1756835793073,1.14846565,111100.0,111090.0,1e-08]
[1756835793319,1.16788944,111100.0,111090.0,1e-08]
[1756835793512,1.19495698,111100.0,111090.0,1e-08]
[1756835793952,1.53495698,111100.0,111090.0,1e-08]
[1756835794468,0.71705466,111100.0,111090.0,1e-08]
[1756835794699,1.53495698,111100.0,111090.0,1e-08]
[1756835795776,1.69219698,111100.0,111090.0,1e-08]
[1756835797272,1.53495698,111100.0,111090.0,1e-08]
[1756835797731,1.69219698,111100.0,111090.0,1e-08]
[1756835798435,1.50778764,111100.0,111090.0,1e-08]
[1756835798645,0.84397532,111100.0,111090.0,1e-08]
[1756835798851,1.25292648,111100.0,111090.0,1e-08]
[1756835799922,1.25594648,111100.0,111090.0,1e-08]
[1756835800423,0.84699532,111100.0,111090.0,1e-08]
[1756835800638,1.25594648,111100.0,111090.0,1e-08]
[1756835800902,1.25292648,111100.0,111090.0,1e-08]
[1756835801119,1.25594648,111100.0,111090.0,1e-08]
[1756835801794,1.66489764,111100.0,111090.0,1e-08]
[1756835802000,1.70367813,111100.0,111090.0,1e-08]
[1756835802224,1.82658741,111100.0,111090.0,1e-08]
[1756835803925,1.79893945,111100.0,111090.0,1e-08]
[1756835804352,0.98103713,111100.0,111090.0,1e-08]
[1756835804599,1.79893945,111100.0,111090.0,1e-08]
[1756835805572,1.64169945,111100.0,111090.0,1e-08]
[1756835806018,1.79893945,111100.0,111090.0,1e-08]
[1756835806422,1.77177011,111100.0,111090.0,1e-08]
[1756835807310,1.61453011,111100.0,111090.0,1e-08]
[1756835807514,1.77173011,111100.0,111090.0,1e-08]
[1756835808857,1.77177011,111100.0,111090.0,1e-08]
[1756835809444,1.36319591,111100.0,111090.0,1e-08]
[1756835809654,2.18185215,111100.0,111090.0,1e-08]
[1756835809832,1.95367333,111100.0,111090.0,1e-08]
[1756835810033,1.66259156,111100.0,111090.0,0.00211001]
[1756835810250,1.66259156,111100.0,111090.0,1e-08]
[1756835810460,2.07191968,111100.0,111090.0,1e-08]
[1756835811425,2.07493968,111100.0,111090.0,1e-08]
[1756835812564,2.07191968,111100.0,111090.0,1e-08]
[1756835813219,2.07493968,111100.0,111090.0,1e-08]
[1756835814266,2.10210902,111100.0,111090.0,1e-08]
[1756835815090,2.09908902,111100.0,111090.0,1e-08]
[1756835816454,2.07191968,111100.0,111090.0,1e-08]
[1756835817091,2.07191968,111100.0,111090.0,0.00211001]
[1756835817262,2.04767968,111100.0,111090.0,0.00211001]
[1756835817482,2.04767968,111100.0,111090.0,0.00504001]
[1756835817694,2.04767968,111100.0,111090.0,0.00211001]
[1756835818066,2.04767968,111100.0,111090.0,1e-08]
[1756835818880,1.47908156,111100.0,111090.0,0.00504001]
[1756835819345,1.04716557,111100.0,111090.0,0.00504001]
[1756835819895,1.02774178,111100.0,111090.0,0.00504001]
[1756835820633,1.20636368,111100.0,111090.0,1e-08]
[1756835820866,1.6156918,111100.0,111090.0,1e-08]
[1756835821077,1.04718368,111100.0,111090.0,0.00504001]
[1756835821285,1.02774178,111100.0,111090.0,0.00504001]
[1756835821710,1.04718524,111100.0,111090.0,0.00504001]
[1756835822184,1.20636524,111100.0,111090.0,1e-08]
[1756835822411,1.20636524,111100.0,111090.0,0.00504001]
[1756835822608,1.20434524,111100.0,111090.0,0.00211001]
[1756835822825,1.20434524,111100.0,111090.0,0.00504001]
[1756835823049,1.02774178,111100.0,111090.0,0.00504001]
[1756835824109,0.182018,111100.0,111090.0,0.00504001]
[1756835824316,0.59134612,111100.0,111090.0,0.00504001]
[1756835824747,1.00067424,111100.0,111090.0,0.00504001]
[1756835828764,0.59134612,111100.0,111090.0,0.00504001]
[1756835829631,1.00067424,111100.0,111090.0,0.00504001]
[1756835829845,1.00280424,111100.0,111090.0,0.00211001]
[1756835830072,1.00067424,111100.0,111090.0,0.00506001]
[1756835830287,1.03316358,111100.0,111090.0,1e-08]
[1756835830505,1.19024358,111100.0,111090.0,1e-08]
[1756835831392,1.5995717,111100.0,111090.0,1e-08]
[1756835831602,1.71427769,111100.0,111090.0,1e-08]
[1756835831811,1.17493751,111100.0,111090.0,1e-08]
[1756835832006,1.30165817,111100.0,111090.0,1e-08]
[1756835833498,1.14457817,111100.0,111090.0,0.00196001]
[1756835833707,1.02774218,111100.0,111090.0,0.00491001]
[1756835834112,0.59134612,111100.0,111090.0,0.00491001]
[1756835834551,0.182018,111100.0,111090.0,0.16195001]
[1756835834750,0.182018,111100.0,111090.0,0.00491001]
[1756835834751,0.59134612,111100.0,111090.0,0.00491001]
[1756835834913,1.00067424,111100.0,111090.0,0.00491001]
[1756835835191,1.00280424,111100.0,111090.0,0.00491001]
[1756835835742,1.00067424,111100.0,111090.0,0.00491001]
[1756835835995,0.182018,111100.0,111090.0,0.00716043]
[1756835836205,0.59134612,111100.0,111090.0,0.00716043]
[1756835836831,0.182018,111100.0,111090.0,0.00491001]
[1756835837042,0.59134612,111100.0,111090.0,0.00491001]
[1756835837267,0.59134612,111100.0,111090.0,0.00716043]
[1756835838643,0.59134612,111100.0,111090.0,0.09907642]
[1756835839099,0.59134612,111100.0,111090.0,0.096826]
[1756835840134,0.59134612,111100.0,111090.0,0.253866]
[1756835840683,1.00067424,111100.0,111090.0,0.253866]
[1756835840894,0.59134612,111100.0,111090.0,0.253866]
[1756835841092,1.00280424,111100.0,111090.0,0.00196001]
[1756835841293,1.00067424,111100.0,111090.0,0.16191001]
[1756835841523,0.59134612,111100.0,111090.0,0.16191001]
[1756835841847,1.00067424,111100.0,111090.0,0.16191001]
[1756835842264,1.00067424,111100.0,111090.0,0.00491001]
[1756835842468,1.00280424,111100.0,111090.0,0.16191001]
[1756835842670,1.00067424,111100.0,111090.0,0.16191001]
[1756835843850,1.00280424,111100.0,111090.0,0.15896001]
[1756835844236,1.00067424,111100.0,111090.0,0.16191001]
[1756835844850,1.00280424,111100.0,111090.0,0.15896001]
[1756835845686,1.00280424,111100.0,111090.0,0.16191001]
[1756835846086,1.00280424,111100.0,111090.0,0.15896001]
[1756835846731,1.00067424,111100.0,111090.0,0.16191001]
[1756835848155,0.182018,111100.0,111090.0,0.16191001]
[1756835848355,1.00067424,111100.0,111090.0,0.16191001]
[1756835848558,0.59134612,111100.0,111090.0,0.16191001]
[1756835848999,1.00280424,111100.0,111090.0,0.15896001]
[1756835849201,1.00280424,111100.0,111090.0,0.15892001]
[1756835850183,0.182018,111100.0,111090.0,0.16187001]
[1756835850450,0.59134612,111100.0,111090.0,0.16187001]
[1756835851188,0.182018,111100.0,111090.0,0.16187001]
[1756835851416,0.59134612,111100.0,111090.0,0.16187001]
[1756835851645,1.00280424,111100.0,111090.0,0.15892001]
[1756835853332,0.184148,111100.0,111090.0,0.15892001]
[1756835853515,1.00280424,111100.0,111090.0,0.15892001]
[1756835853715,1.00280424,111100.0,111090.0,0.16187001]
[1756835853918,0.182018,111100.0,111090.0,0.16187001]
[1756835854097,0.59134612,111100.0,111090.0,0.16187001]
[1756835854509,0.182018,111100.0,111090.0,0.16187001]
[1756835854704,0.182018,111100.0,111090.0,0.34190421]
[1756835855040,0.182018,111100.0,111090.0,0.75123233]
[1756835855461,0.182018,111100.0,111090.0,0.34190421]
[1756835855655,0.182018,111100.0,111090.0,0.16187001]
[1756835855855,0.182018,111100.0,111090.0,0.16412043]
[1756835856058,0.182018,111100.0,111090.0,0.34415463]
[1756835856219,0.59134612,111100.0,111090.0,0.16183001]
[1756835857008,0.59134612,111100.0,111090.0,0.17093144]
[1756835857430,0.59134612,111100.0,111090.0,0.16183001]
[1756835858518,0.182018,111100.0,111090.0,0.16183001]
[1756835858719,0.59134612,111100.0,111090.0,0.16183001]
[1756835860040,0.59134612,111100.0,111090.0,0.17102418]
[1756835860425,0.59134612,111100.0,111090.0,0.16183001]
[1756835860738,0.59342612,111100.0,111090.0,0.00196001]
[1756835860975,1.00275424,111100.0,111090.0,1e-08]
[1756835861184,1.00275424,111100.0,111090.0,0.15688001]
[1756835861820,0.184098,111100.0,111090.0,0.15688001]
[1756835862030,1.00275424,111100.0,111090.0,0.15688001]
[1756835862232,1.00275424,111100.0,111090.0,0.15901001]
[1756835862522,1.00573424,111100.0,111090.0,0.15688001]
[1756835862791,0.187078,111100.0,111090.0,1e-08]
[1756835862967,0.187078,111100.0,111090.0,0.15688001]
[1756835862968,1.00573424,111100.0,111090.0,0.15688001]
[1756835863380,1.02544424,111100.0,111090.0,0.15688001]
[1756835863586,0.59342612,111100.0,111090.0,0.16423043]
[1756835863792,0.182018,111100.0,111090.0,0.16423043]
[1756835864202,0.59134612,111100.0,111090.0,0.16423043]
[1756835864493,0.182018,111100.0,111090.0,0.16423043]
[1756835865078,0.182018,111100.0,111090.0,0.84550874]
[1756835865284,0.182018,111100.0,111090.0,0.4339302]
[1756835865460,0.182018,111100.0,111090.0,0.097016]
[1756835865650,0.182018,111100.0,111090.0,0.25610642]
[1756835865875,0.182018,111100.0,111090.0,0.253856]
[1756835866282,0.182018,111100.0,111090.0,0.097016]
[1756835866483,0.182018,111100.0,111090.0,0.25610642]
[1756835866726,0.59134612,111100.0,111090.0,0.097016]
[1756835867032,1.00573424,111100.0,111090.0,1e-08]
[1756835867243,1.00573424,111100.0,111090.0,0.15684001]
[1756835867445,1.02842424,111100.0,111090.0,0.15684001]
[1756835868494,0.209768,111100.0,111090.0,0.15684001]
[1756835868700,1.02842424,111100.0,111090.0,0.15684001]
[1756835869325,1.03727853,111100.0,111090.0,0.15684001]
[1756835869563,0.62776004,111100.0,111090.0,0.15684001]
[1756835869937,0.21862229,111100.0,111090.0,1e-08]
[1756835870163,0.62776004,111100.0,111090.0,0.15684001]
[1756835870819,0.184098,111100.0,111090.0,0.16194001]
[1756835870997,0.182018,111100.0,111090.0,0.16194001]
[1756835871198,0.59115575,111100.0,111090.0,0.16194001]
[1756835871404,0.59323575,111100.0,111090.0,0.15897001]
[1756835871813,0.59323575,111100.0,111090.0,0.15893001]
[1756835872216,0.60236287,111100.0,111090.0,0.15893001]
[1756835872977,0.60534287,111100.0,111090.0,0.15680001]
[1756835873195,0.60534287,111100.0,111090.0,1e-08]
[1756835873446,0.62803287,111100.0,111090.0,0.15680001]
[1756835873603,0.21889512,111100.0,111090.0,0.15680001]
[1756835873802,0.62803287,111100.0,111090.0,0.15680001]
[1756835876560,0.21889512,111100.0,111090.0,0.15680001]
[1756835876794,0.62803287,111100.0,111090.0,0.15680001]
[1756835877042,1.15625595,111100.0,111090.0,1e-08]
[1756835877282,1.31305595,111100.0,111090.0,1e-08]
[1756835877509,1.2047974,111100.0,111090.0,1e-08]
[1756835878238,1.0480374,111100.0,111090.0,1e-08]
[1756835878716,1.2047974,111100.0,111090.0,1e-08]
[1756835879420,1.20406687,111100.0,111090.0,1e-08]
[1756835881173,1.54406687,111100.0,111090.0,1e-08]
[1756835882056,1.38730687,111100.0,111090.0,1e-08]
[1756835882271,1.54406687,111100.0,111090.0,1e-08]
[1756835882908,1.38730687,111100.0,111090.0,1e-08]
[1756835883146,0.88052808,111100.0,111090.0,1e-08]
[1756835883396,1.54406687,111100.0,111090.0,1e-08]
[1756835885412,1.38730687,111100.0,111090.0,1e-08]
[1756835885639,1.54104687,111100.0,111090.0,1e-08]
[1756835886075,1.51685753,111100.0,111090.0,1e-08]
[1756835886977,1.36013753,111100.0,111090.0,1e-08]
[1756835887188,1.51387753,111100.0,111090.0,1e-08]
[1756835887691,0.69361874,111100.0,111090.0,1e-08]
[1756835887936,1.49118753,111100.0,111090.0,0.00213001]
[1756835888547,1.49118753,111100.0,111090.0,1e-08]
[1756835889866,1.49424753,111100.0,111090.0,1e-08]
[1756835890287,1.49118753,111100.0,111090.0,1e-08]
[1756835890737,1.49424753,111100.0,111090.0,1e-08]
[1756835891145,1.51748753,111100.0,111090.0,1e-08]
[1756835891362,1.54465687,111100.0,111090.0,1e-08]
[1756835892533,1.54461687,111100.0,111090.0,1e-08]
[1756835892758,1.54155687,111100.0,111090.0,1e-08]
[1756835893670,1.38487687,111100.0,111090.0,1e-08]
[1756835893889,0.20835602,111100.0,111090.0,0.00535001]
[1756835894318,0.20835602,111100.0,111090.0,0.32749231]
[1756835894535,0.18128747,111100.0,111090.0,0.50752651]
[1756835894745,0.00126947,111100.0,111090.0,1.27062276]
[1756835894955,0.00126947,111100.0,111090.0,1.19707645]
[1756835895405,0.00126947,111100.0,111090.0,0.53353766]
[1756835896028,0.18128747,111100.0,111090.0,0.37685766]
[1756835896235,0.18128747,111100.0,111090.0,0.53353766]
[1756835896850,0.00126947,111100.0,111090.0,0.53353766]
[1756835897422,0.18128747,111100.0,111090.0,0.53353766]
[1756835898044,0.00126947,111100.0,111090.0,0.53353766]
[1756835898485,0.18128747,111100.0,111090.0,0.53353766]
[1756835898708,0.18128747,111100.0,111090.0,0.5244788]
[1756835899563,0.18128747,111100.0,111090.0,0.56584209]
[1756835900179,0.18128747,111100.0,111090.0,0.57477057]
[1756835900781,0.18128747,111100.0,111090.0,0.41813057]
[1756835901195,0.18128747,111100.0,111090.0,0.38576789]
[1756835901633,0.18128747,111100.0,111090.0,0.56580209]
[1756835901837,0.18128747,111100.0,111090.0,0.38576789]
[1756835902586,0.18128747,111100.0,111090.0,0.22916789]
[1756835902838,0.18128747,111100.0,111090.0,0.09588861]
[1756835903045,0.18128747,111100.0,111090.0,0.25248861]
[1756835904031,0.18331747,111100.0,111090.0,0.09588861]
[1756835904232,0.18331747,111100.0,111090.0,0.06562001]
[1756835904439,0.18331747,111100.0,111090.0,0.22218001]
[1756835904717,0.18331747,111100.0,111090.0,0.22004001]
[1756835905236,0.18331747,111100.0,111090.0,0.22218001]
[1756835908173,0.18331747,111100.0,111090.0,0.22004001]
[1756835908378,0.84685626,111100.0,111090.0,0.06348001]
[1756835908606,0.84991626,111100.0,111090.0,0.22000001]
[1756835908749,0.84991626,111100.0,111090.0,0.15652001]
[1756835911607,0.18331747,111100.0,111090.0,0.15866001]
[1756835912020,0.84685626,111100.0,111090.0,0.15866001]
[1756835912241,0.18128747,111100.0,111090.0,0.16187001]
[1756835912446,0.18128747,111100.0,111090.0,0.16412043]
[1756835913066,0.18128747,111100.0,111090.0,0.16187001]
[1756835913249,0.18128747,111100.0,111090.0,0.16412043]
[1756835913504,0.18128747,111100.0,111090.0,0.16187001]
[1756835914956,0.18637747,111100.0,111090.0,1e-08]
[1756835915168,0.18331747,111100.0,111090.0,0.15648001]
[1756835915402,0.18331747,111100.0,111090.0,0.16183001]
[1756835915823,0.18128747,111100.0,111090.0,0.16183001]
[1756835916741,0.18128747,111100.0,111090.0,0.16408043]
[1756835917204,0.18128747,111100.0,111090.0,0.16183001]
[1756835918902,0.18128747,111100.0,111090.0,0.00535001]
[1756835919125,0.18335747,111100.0,111090.0,0.00214001]
[1756835919347,0.18335747,111100.0,111090.0,0.15858001]
[1756835919581,0.182088,111100.0,111090.0,0.15858001]
[1756835919793,0.182088,111100.0,111090.0,0.16252001]
[1756835920000,0.180018,111100.0,111090.0,0.16252001]
[1756835920200,0.18384412,111100.0,111090.0,0.16252001]
[1756835920410,0.182088,111100.0,111090.0,0.16252001]
[1756835920810,0.182088,111100.0,111090.0,0.00608001]
[1756835920970,0.182088,111100.0,111090.0,0.15744001]
[1756835921185,0.183088,111100.0,111090.0,0.15953001]
[1756835921380,0.183088,111100.0,111090.0,0.16247001]
[1756835921588,0.182088,111100.0,111090.0,0.16247001]
[1756835921828,0.180018,111100.0,111090.0,0.16447001]
[1756835922097,0.18177412,111100.0,111090.0,0.16447001]
[1756835922827,0.18177412,111100.0,111090.0,0.00803001]
[1756835923038,0.18384412,111100.0,111090.0,0.16447001]
[1756835923325,0.182088,111100.0,111090.0,0.16447001]
[1756835924974,0.182088,111100.0,111090.0,0.00300001]
[1756835925184,0.84867679,111100.0,111090.0,0.00300001]
[1756835925394,0.84867679,111100.0,111090.0,0.15940001]
[1756835926214,0.84867679,111100.0,111090.0,0.15740001]
[1756835926383,0.84867679,111100.0,111090.0,0.15640001]
[1756835926960,0.84867679,111100.0,111090.0,1e-08]
[1756835927165,0.84867679,111100.0,111090.0,0.15640001]
[1756835928447,0.185138,111100.0,111090.0,0.15640001]
[1756835928646,0.84867679,111100.0,111090.0,0.15640001]
[1756835929535,0.61133917,111100.0,111090.0,1e-08]
[1756835929738,0.61133917,111100.0,111090.0,0.15640001]
[1756835929936,0.60621917,111100.0,111090.0,0.15640001]
[1756835930139,0.60621917,111100.0,111090.0,0.16143001]
[1756835930478,0.60828917,111100.0,111090.0,0.16143001]
[1756835930881,0.60828917,111100.0,111090.0,0.15849001]
[1756835931077,0.180018,111100.0,111090.0,0.16143001]
[1756835931315,0.18177412,111100.0,111090.0,0.16143001]
[1756835932319,0.18384412,111100.0,111090.0,0.16143001]
[1756835932523,0.182088,111100.0,111090.0,0.16143001]
[1756835933317,0.60828917,111100.0,111090.0,0.16143001]
[1756835933523,0.182088,111100.0,111090.0,0.16143001]
[1756835933734,0.180018,111100.0,111090.0,0.16143001]
[1756835933940,0.18177412,111100.0,111090.0,0.16143001]
[1756835935709,0.180018,111100.0,111090.0,0.16143001]
[1756835935929,0.180018,111100.0,111090.0,0.4333802]
[1756835936147,0.180018,111100.0,111090.0,0.85958137]
[1756835936370,0.180018,111100.0,111090.0,0.4333802]
[1756835937061,0.180018,111100.0,111090.0,0.096946]
[1756835937313,0.182088,111100.0,111090.0,0.00503001]
[1756835937524,0.61309529,111100.0,111090.0,1e-08]
[1756835937750,0.61133917,111100.0,111090.0,0.15636001]
[1756835937976,0.60828917,111100.0,111090.0,0.15845001]
[1756835938195,0.182088,111100.0,111090.0,0.15945001]
[1756835938404,0.60828917,111100.0,111090.0,0.16439001]
[1756835938609,0.60828917,111100.0,111090.0,0.15945001]
[1756835938899,0.60828917,111100.0,111090.0,1e-08]
[1756835939103,0.60828917,111100.0,111090.0,0.15845001]
[1756835939513,1.00029708,111100.0,111090.0,0.15845001]
[1756835940461,1.00029708,111100.0,111090.0,0.00209001]
[1756835940637,1.00334708,111100.0,111090.0,0.15632001]
[1756835941156,1.00334708,111100.0,111090.0,1e-08]
[1756835941362,1.00334708,111100.0,111090.0,0.15632001]
[1756835941567,1.00334708,111100.0,111090.0,1e-08]
[1756835941815,1.00334708,111100.0,111090.0,0.15632001]
[1756835942219,1.00029708,111100.0,111090.0,0.16135001]
[1756835942427,0.180018,111100.0,111090.0,0.16135001]
[1756835942851,0.58912254,111100.0,111090.0,0.16135001]
[1756835943019,0.180018,111100.0,111090.0,0.57270497]
[1756835943222,0.180018,111100.0,111090.0,0.57045455]
[1756835943452,0.180018,111100.0,111090.0,0.16135001]
[1756835943664,0.180018,111100.0,111090.0,0.16360043]
[1756835944631,0.18177412,111100.0,111090.0,0.16360043]
[1756835945441,0.18177412,111100.0,111090.0,0.00728043]
[1756835945673,0.18177412,111100.0,111090.0,0.16356043]
[1756835949436,0.180018,111100.0,111090.0,0.16356043]
[1756835949868,0.18177412,111100.0,111090.0,0.16356043]
[1756835950271,0.59302866,111100.0,111090.0,0.16058043]
[1756835950473,0.59127254,111100.0,111090.0,0.16058043]
[1756835950695,0.59127254,111100.0,111090.0,0.16352043]
[1756835952834,0.59127254,111100.0,111090.0,0.15624001]
[1756835953407,0.180018,111100.0,111090.0,0.16126001]
[1756835953623,0.59087866,111100.0,111090.0,0.16126001]
[1756835953839,0.58912254,111100.0,111090.0,0.16126001]
[1756835954024,0.58912254,111100.0,111090.0,0.16351043]
[1756835955787,0.59127254,111100.0,111090.0,0.16351043]
[1756835956205,0.182168,111100.0,111090.0,0.16351043]
[1756835956413,0.58912254,111100.0,111090.0,0.16126001]
[1756835957236,0.180018,111100.0,111090.0,0.16126001]
[1756835957406,0.59302866,111100.0,111090.0,0.00502001]
[1756835957623,0.59127254,111100.0,111090.0,0.16122001]
[1756835957815,0.182168,111100.0,111090.0,0.16122001]
[1756835958023,0.59127254,111100.0,111090.0,0.16122001]
[1756835959263,0.59447254,111100.0,111090.0,1e-08]
[1756835959425,1.02780708,111100.0,111090.0,0.15620001]
[1756835960691,0.58912254,111100.0,111090.0,0.15828001]
[1756835961049,0.59127254,111100.0,111090.0,0.15828001]
[1756835963913,0.59127254,111100.0,111090.0,0.16122001]
[1756835964479,0.180018,111100.0,111090.0,0.16122001]
[1756835964683,0.180018,111100.0,111090.0,0.75260917]
[1756835964886,0.1800018,111110.0,111090.0,0.84227474]
[1756835965072,0.1800018,111110.0,111100.0,0.58912254]
[1756835965204,0.1800018,111110.0,111100.0,0.59414254]
[1756835966456,0.1800018,111110.0,111100.0,0.41412454]
[1756835966668,0.1800018,111110.0,111100.0,0.16114]
[1756835966884,0.1800018,111110.0,111100.0,0.57249476]
[1756835967115,0.1800018,111110.0,111100.0,0.57024454]
[1756835967725,0.1800018,111110.0,111100.0,0.00502]
[1756835967937,0.1800018,111110.0,111100.0,0.58158741]
[1756835968161,0.1800018,111110.0,111100.0,0.57933719]
[1756835968594,0.1800018,111110.0,111100.0,0.17023265]
[1756835968796,0.1800018,111110.0,111100.0,0.58158741]
[1756835969020,0.1800018,111110.0,111100.0,0.57933719]
[1756835969229,0.1800018,111110.0,111100.0,0.41412454]
[1756835969447,0.180018,111100.0,111090.0,0.33958194]
[1756835969668,0.180018,111100.0,111090.0,0.90982648]
[1756835970082,0.58910634,111110.0,111090.0,0.90982648]
[1756835970295,0.58910634,111110.0,111090.0,0.34166194]
[1756835970296,0.180018,111100.0,111090.0,0.34166194]
[1756835970492,0.180018,111100.0,111090.0,0.90684648]
[1756835970790,0.180018,111100.0,111090.0,0.75176648]
[1756835970991,0.180018,111100.0,111090.0,0.91078648]
[1756835971204,0.180018,111100.0,111090.0,0.16556774]
[1756835971418,0.180018,111100.0,111090.0,0.73075228]
[1756835971623,0.59127254,111100.0,111090.0,0.03213923]
[1756835971826,0.59127254,111100.0,111090.0,0.16116001]
[1756835972463,0.182168,111100.0,111090.0,0.16116001]
[1756835972632,0.59302866,111100.0,111090.0,0.16116001]
[1756835972985,0.59127254,111100.0,111090.0,0.16410001]
[1756835973124,0.182168,111100.0,111090.0,0.16410001]
[1756835973325,0.59127254,111100.0,111090.0,0.16410001]
[1756835974004,0.182168,111100.0,111090.0,0.16410001]
[1756835974417,0.59127254,111100.0,111090.0,0.16410001]
[1756835975616,0.182168,111100.0,111090.0,0.16410001]
[1756835975946,0.59127254,111100.0,111090.0,0.16112001]
[1756835977049,0.59127254,111100.0,111090.0,0.00508001]
[1756835977284,0.59127254,111100.0,111090.0,0.15904001]
[1756835978056,0.59127254,111100.0,111090.0,0.16112001]
[1756835978558,0.59127254,111100.0,111090.0,0.16416001]
[1756835979237,0.182168,111100.0,111090.0,0.16416001]
[1756835979417,0.59127254,111100.0,111090.0,0.16416001]
[1756835980023,0.182168,111100.0,111090.0,0.16416001]
[1756835980240,0.59127254,111100.0,111090.0,0.16416001]
[1756835981555,0.182168,111100.0,111090.0,0.16416001]
[1756835981772,0.59117254,111100.0,111090.0,0.16416001]
[1756835981930,0.59117254,111100.0,111090.0,0.16112001]
[1756835982332,0.182068,111100.0,111090.0,0.16112001]
[1756835982780,0.59117254,111100.0,111090.0,0.16416001]
[1756835982993,0.41115454,111100.0,111090.0,0.34419421]
[1756835983183,0.180018,111100.0,111090.0,0.75329875]
[1756835986294,0.180018,111100.0,111090.0,0.84521474]
[1756835986479,0.180018,111100.0,111090.0,0.4361102]
[1756835986684,0.180018,111100.0,111090.0,0.87227484]
[1756835988335,0.1800018,111110.0,111090.0,0.87227484]
[1756835988548,0.1800018,111110.0,111100.0,0.41439476]
[1756835988752,0.1800018,111110.0,111100.0,0.41214454]
[1756835988953,0.1800018,111110.0,111100.0,0.41414454]
[1756835989179,0.1820518,111110.0,111100.0,0.41414454]
[1756835989587,0.1800018,111110.0,111100.0,0.00504]
[1756835989788,0.1800018,111110.0,111100.0,0.00729022]
[1756835989993,0.1820518,111110.0,111100.0,0.00729022]
[1756835990221,0.1820518,111110.0,111100.0,0.16321022]
[1756835990560,0.59427634,111110.0,111100.0,0.15592]
[1756835990775,0.180018,111100.0,111090.0,0.094956]
[1756835990988,0.180018,111100.0,111090.0,0.250876]
[1756835991193,0.182068,111100.0,111090.0,0.096956]
[1756835991408,0.59117254,111100.0,111090.0,0.093916]
[1756835991617,0.182068,111100.0,111090.0,0.249796]
[1756835992250,0.182068,111100.0,111090.0,0.251796]
[1756835992787,0.182068,111100.0,111090.0,0.252796]
[1756835993898,0.182068,111100.0,111090.0,0.255836]
[1756835996659,0.180018,111100.0,111090.0,0.255836]
[1756835997723,0.182068,111100.0,111090.0,0.255796]
[1756835998643,0.180018,111100.0,111090.0,0.255796]
[1756835999267,0.180018,111100.0,111090.0,0.099956]
[1756835999494,0.182068,111100.0,111090.0,0.096916]
[1756835999680,0.182068,111100.0,111090.0,0.252716]
[1756836000009,0.185188,111100.0,111090.0,0.15880001]
[1756836000231,0.185188,111100.0,111090.0,0.00525043]
[1756836000447,0.185188,111100.0,111090.0,0.00300001]
[1756836000448,0.59422193,111100.0,111090.0,0.00300001]
[1756836000663,0.61774193,111100.0,111090.0,0.15880001]
[1756836000885,0.64491127,111100.0,111090.0,0.15880001]
[1756836001087,0.66437973,111100.0,111090.0,0.00300001]
[1756836001293,0.66437973,111100.0,111090.0,0.15880001]
[1756836001533,0.64491127,111100.0,111090.0,0.15580001]
[1756836001753,0.211708,111100.0,111090.0,0.15580001]
[1756836001961,0.61874193,111100.0,111090.0,0.15580001]
[1756836002181,0.61774193,111100.0,111090.0,0.15580001]
[1756836002392,0.61874193,111100.0,111090.0,0.15580001]
[1756836002614,0.209708,111100.0,111090.0,0.15580001]
[1756836002839,0.61974193,111100.0,111090.0,0.15580001]
[1756836003505,0.61974193,111100.0,111090.0,0.16309043]
[1756836003506,0.182018,111100.0,111090.0,0.16309043]
[1756836003709,0.181018,111100.0,111090.0,0.16309043]
[1756836003919,0.18482412,111100.0,111090.0,0.16309043]
[1756836004156,0.183068,111100.0,111090.0,0.16309043]
[1756836004818,0.182068,111100.0,111090.0,0.16309043]
[1756836005021,0.180018,111100.0,111090.0,0.16309043]
[1756836005231,0.180018,111100.0,111090.0,0.57212436]